[Event "*** Titled Tuesday 3|2 Blitz"]
[Site "Chess.com"]
[Date "2015.06.02"]
[Round "5"]
[White "Krutoy123"]
[Black "Malev212"]
[Result "1-0"]
[WhiteElo "2105"]
[BlackElo "2208"]
[TimeControl "180+2"]
[EndTime "12:00:35 PDT"]
[Termination "Krutoy123 won by resignation"]

1. e4 {[%clk 0:03:00.3]} 1... g6 {[%clk 0:02:59.6]} 2. d4 {[%clk 0:03:00.5]}
2... d6 {[%clk 0:03:00.1]} 3. Nc3 {[%clk 0:03:01.5]} 3... c6 {[%clk 0:03:00.8]}
4. f4 {[%clk 0:03:02.1]} 4... d5 {[%clk 0:03:01.4]} 5. Nf3 {[%clk 0:03:03.6]}
5... dxe4 {[%clk 0:02:56.3]} 6. Nxe4 {[%clk 0:03:05.5]} 6... Bg4 {[%clk
0:02:55.7]} 7. c3 {[%clk 0:03:05.6]} 7... Bg7 {[%clk 0:02:54.5]} 8. h3 {[%clk
0:03:06.1]} 8... Bxf3 {[%clk 0:02:54.2]} 9. Qxf3 {[%clk 0:03:06.3]} 9... e6
{[%clk 0:02:54.8]} 10. Be2 {[%clk 0:03:03.1]} 10... Ne7 {[%clk 0:02:52.6]} 11.
O-O {[%clk 0:03:04.4]} 11... O-O {[%clk 0:02:53.1]} 12. b3 {[%clk 0:03:00.4]}
12... Nd7 {[%clk 0:02:29.3]} 13. Bb2 {[%clk 0:02:58.3]} 13... Nf5 {[%clk
0:02:27]} 14. Rad1 {[%clk 0:02:58.2]} 14... Qc7 {[%clk 0:02:25.3]} 15. Ba1
{[%clk 0:02:54.9]} 15... Rad8 {[%clk 0:02:20.3]} 16. g4 {[%clk 0:02:51.6]} 16...
Ne7 {[%clk 0:02:15]} 17. Bb2 {[%clk 0:02:51]} 17... c5 {[%clk 0:02:14.1]} 18.
Ba3 {[%clk 0:02:49]} 18... b6 {[%clk 0:02:13.5]} 19. Qf2 {[%clk 0:02:41.6]}
19... Nd5 {[%clk 0:01:55.2]} 20. c4 {[%clk 0:02:40.5]} 20... Nb4 {[%clk
0:01:41.8]} 21. dxc5 {[%clk 0:02:38.1]} 21... Nxc5 {[%clk 0:01:38]} 22. Bxb4
{[%clk 0:02:21.4]} 22... Nxe4 {[%clk 0:01:37.4]} 23. Qe3 {[%clk 0:02:20.8]}
23... Nc5 {[%clk 0:01:37.6]} 24. Kg2 {[%clk 0:02:19.7]} 24... a5 {[%clk
0:01:37.8]} 25. Ba3 {[%clk 0:02:19.5]} 25... Rfe8 {[%clk 0:01:30.7]} 26. Bf3
{[%clk 0:02:17.5]} 26... h6 {[%clk 0:01:18.6]} 27. Bc1 {[%clk 0:02:00.2]} 27...
Rxd1 {[%clk 0:01:13.4]} 28. Rxd1 {[%clk 0:02:02.1]} 28... Rd8 {[%clk 0:01:14.2]}
29. Qe2 {[%clk 0:02:02.9]} 29... Rd4 {[%clk 0:01:08.7]} 30. Rxd4 {[%clk
0:02:01.4]} 30... Bxd4 {[%clk 0:01:08.2]} 31. f5 {[%clk 0:02:02.3]} 31... g5
{[%clk 0:00:51.1]} 32. fxe6 {[%clk 0:01:59.7]} 32... Nxe6 {[%clk 0:00:48.6]} 33.
Qe4 {[%clk 0:01:35.9]} 33... Kg7 {[%clk 0:00:46.4]} 34. Qf5 {[%clk 0:01:33.1]}
34... Bf6 {[%clk 0:00:42.4]} 35. Bd5 {[%clk 0:01:31.7]} 35... Nd4 {[%clk
0:00:39.1]} 36. Qe4 {[%clk 0:01:32.5]} 36... Qd7 {[%clk 0:00:32.1]} 37. Be3
{[%clk 0:01:31.6]} 37... Ne6 {[%clk 0:00:32.2]} 38. Bxe6 {[%clk 0:01:30.1]}
38... fxe6 {[%clk 0:00:31.1]} 39. Bxb6 {[%clk 0:01:27.8]} 39... Qd2+ {[%clk
0:00:30.6]} 40. Bf2 {[%clk 0:01:19.9]} 40... Kf7 {[%clk 0:00:26.1]} 41. a3
{[%clk 0:00:58.1]} 41... Qc3 {[%clk 0:00:22.3]} 42. Qf3 {[%clk 0:00:57.8]} 42...
Qb2 {[%clk 0:00:19.2]} 43. c5 {[%clk 0:00:54.6]} 43... Ke7 {[%clk 0:00:15.9]}
44. Qd3 {[%clk 0:00:38.1]} 44... Be5 {[%clk 0:00:13.1]} 45. c6 {[%clk
0:00:33.8]} 45... Bd6 {[%clk 0:00:08.6]} 46. Qh7+ {[%clk 0:00:32.9]} 46... Kf8
{[%clk 0:00:06.2]} 47. Qxh6+ {[%clk 0:00:33]} 47... Kf7 {[%clk 0:00:07.2]} 48.
Qh7+ {[%clk 0:00:27.5]} 48... Kf8 {[%clk 0:00:07.2]} 49. Qd3 {[%clk 0:00:26.2]}
49... Bc5 {[%clk 0:00:04.8]} 50. Qf3+ {[%clk 0:00:26.8]} 50... Ke7 {[%clk
0:00:05.5]} 51. c7 {[%clk 0:00:16.7]} 51... Kd7 {[%clk 0:00:06.3]} 52. Qf7+
{[%clk 0:00:17.5]} 52... Kc8 {[%clk 0:00:07.2]} 53. Qxe6+ {[%clk 0:00:16.7]}
53... Kxc7 {[%clk 0:00:08.1]} 54. Qf7+ {[%clk 0:00:15.8]} 54... Kc6 {[%clk
0:00:08.2]} 55. Qg6+ {[%clk 0:00:15.4]} 55... Kb7 {[%clk 0:00:07.6]} 56. Qe4+
{[%clk 0:00:14.9]} 56... Ka6 {[%clk 0:00:06.6]} 57. Qc4+ {[%clk 0:00:15.7]} 1-0

[Event "*** Titled Tuesday 3|2 Blitz"]
[Site "Chess.com"]
[Date "2015.06.02"]
[Round "5"]
[White "GGuseinov"]
[Black "VSERGUEI"]
[Result "1/2-1/2"]
[WhiteElo "2522"]
[BlackElo "2500"]
[TimeControl "180+2"]
[EndTime "12:00:42 PDT"]
[Termination "Game drawn by repetition"]

1. e4 {[%clk 0:02:53.8]} 1... e6 {[%clk 0:03:01]} 2. d4 {[%clk 0:02:52.9]} 2...
d5 {[%clk 0:03:02.6]} 3. Nd2 {[%clk 0:02:53]} 3... Nf6 {[%clk 0:03:04.1]} 4. e5
{[%clk 0:02:53.7]} 4... Nfd7 {[%clk 0:03:05.5]} 5. Ngf3 {[%clk 0:02:53]} 5... c5
{[%clk 0:03:07]} 6. c3 {[%clk 0:02:48]} 6... Nc6 {[%clk 0:03:08.2]} 7. Bd3
{[%clk 0:02:49.1]} 7... a5 {[%clk 0:03:09.3]} 8. a4 {[%clk 0:02:48.3]} 8... Be7
{[%clk 0:03:04.6]} 9. O-O {[%clk 0:02:47.3]} 9... g5 {[%clk 0:03:05]} 10. dxc5
{[%clk 0:02:47]} 10... h5 {[%clk 0:03:04.2]} 11. Bb5 {[%clk 0:02:36.5]} 11...
Nxc5 {[%clk 0:02:57.9]} 12. Nd4 {[%clk 0:02:34.1]} 12... Bd7 {[%clk 0:02:57.3]}
13. f4 {[%clk 0:02:30.6]} 13... Nxd4 {[%clk 0:02:57.1]} 14. cxd4 {[%clk
0:02:29.5]} 14... Bxb5 {[%clk 0:02:57.3]} 15. axb5 {[%clk 0:02:30.4]} 15... Nd3
{[%clk 0:02:49.7]} 16. f5 {[%clk 0:02:22.8]} 16... Qb6 {[%clk 0:02:43.1]} 17.
Nf3 {[%clk 0:02:23.8]} 17... Nxc1 {[%clk 0:02:40.5]} 18. Rxc1 {[%clk 0:02:21.3]}
18... g4 {[%clk 0:02:40.5]} 19. Ne1 {[%clk 0:02:17]} 19... Kd7 {[%clk
0:02:30.6]} 20. Qa4 {[%clk 0:02:10.1]} 20... Rac8 {[%clk 0:02:25.4]} 21. Nd3
{[%clk 0:02:02.1]} 21... Rxc1 {[%clk 0:02:12.5]} 22. Rxc1 {[%clk 0:02:02.3]}
22... Rc8 {[%clk 0:02:13.2]} 23. Rxc8 {[%clk 0:01:57.5]} 23... Kxc8 {[%clk
0:02:13.6]} 24. fxe6 {[%clk 0:01:54.9]} 24... fxe6 {[%clk 0:02:13.5]} 25. Kf2
{[%clk 0:01:48.4]} 25... Qc7 {[%clk 0:02:01.8]} 26. Ke2 {[%clk 0:01:48.7]} 26...
b6 {[%clk 0:01:57.6]} 27. Kd1 {[%clk 0:01:43]} 27... Bg5 {[%clk 0:01:45.8]} 28.
h3 {[%clk 0:01:26.8]} 28... gxh3 {[%clk 0:01:37.8]} 29. gxh3 {[%clk 0:01:27.7]}
29... Kd7 {[%clk 0:01:31.9]} 30. Qc2 {[%clk 0:01:13.5]} 30... Qxc2+ {[%clk
0:01:25.5]} 31. Kxc2 {[%clk 0:01:15.4]} 31... Ke7 {[%clk 0:01:23]} 32. b3 {[%clk
0:01:11.8]} 32... Be3 {[%clk 0:01:20.1]} 33. Kc3 {[%clk 0:01:11.6]} 33... Kf7
{[%clk 0:01:20.8]} 34. Nb2 {[%clk 0:01:12.7]} 34... Bg5 {[%clk 0:01:02.3]} 35.
Na4 {[%clk 0:01:13.4]} 35... Bd8 {[%clk 0:01:03.1]} 36. Kd3 {[%clk 0:01:14.2]}
36... Kg6 {[%clk 0:01:03.2]} 37. Ke3 {[%clk 0:01:15.4]} 37... Kg5 {[%clk
0:00:57.3]} 38. Kf3 {[%clk 0:01:15.9]} 38... Kh4 {[%clk 0:00:54.1]} 39. Kg2
{[%clk 0:01:16.3]} 39... Bc7 {[%clk 0:00:53.3]} 40. Nb2 {[%clk 0:01:13.8]} 40...
Kg5 {[%clk 0:00:50.5]} 41. Kf3 {[%clk 0:01:13.2]} 41... Kh4 {[%clk 0:00:51.1]}
42. Kg2 {[%clk 0:01:13.9]} 42... Kg5 {[%clk 0:00:52.1]} 43. Nd3 {[%clk
0:01:13.6]} 43... Bd8 {[%clk 0:00:49.6]} 44. Kf3 {[%clk 0:01:04.9]} 44... Kf5
{[%clk 0:00:37.1]} 45. Nf4 {[%clk 0:01:01.9]} 45... h4 {[%clk 0:00:20]} 46. Nd3
{[%clk 0:01:02.5]} 46... Bg5 {[%clk 0:00:19.2]} 47. Nb2 {[%clk 0:01:01.2]} 47...
Be7 {[%clk 0:00:17.5]} 48. Na4 {[%clk 0:01:02]} 48... Bd8 {[%clk 0:00:18.5]} 49.
Nc3 {[%clk 0:01:02.2]} 49... Be7 {[%clk 0:00:16.8]} 50. Nd1 {[%clk 0:01:01.4]}
50... Bg5 {[%clk 0:00:15.8]} 51. Nc3 {[%clk 0:00:55.3]} 51... Be7 {[%clk
0:00:15.1]} 52. Ne2 {[%clk 0:00:55.4]} 52... Bg5 {[%clk 0:00:15.9]} 53. Nc3
{[%clk 0:00:36.3]} 53... Be7 {[%clk 0:00:16.1]} 54. Na4 {[%clk 0:00:37.8]} 54...
Bd8 {[%clk 0:00:16.8]} 55. Nb2 {[%clk 0:00:27.7]} 55... Be7 {[%clk 0:00:16.7]}
56. Nd1 {[%clk 0:00:25.4]} 56... Bg5 {[%clk 0:00:16.5]} 57. Nc3 {[%clk
0:00:12.7]} 57... Be7 {[%clk 0:00:16.8]} 1/2-1/2

[Event "*** Titled Tuesday 3|2 Blitz"]
[Site "Chess.com"]
[Date "2015.06.02"]
[Round "5"]
[White "alexsuper1987"]
[Black "Vandros57"]
[Result "1-0"]
[WhiteElo "2068"]
[BlackElo "1823"]
[TimeControl "180+2"]
[EndTime "12:00:50 PDT"]
[Termination "alexsuper1987 won on time"]

1. e4 {[%clk 0:03:01.9]} 1... c5 {[%clk 0:02:58.9]} 2. d4 {[%clk 0:03:01.9]}
2... cxd4 {[%clk 0:02:58.3]} 3. Nf3 {[%clk 0:03:03.6]} 3... d6 {[%clk
0:02:54.8]} 4. Nxd4 {[%clk 0:03:05.1]} 4... Nf6 {[%clk 0:02:54.4]} 5. Nc3 {[%clk
0:03:06.5]} 5... Nc6 {[%clk 0:02:54]} 6. Be3 {[%clk 0:03:07.9]} 6... e5 {[%clk
0:02:52.5]} 7. Nb3 {[%clk 0:03:07.5]} 7... Be7 {[%clk 0:02:50.3]} 8. f3 {[%clk
0:03:09]} 8... O-O {[%clk 0:02:49.7]} 9. Qd2 {[%clk 0:03:10.5]} 9... Be6 {[%clk
0:02:43.2]} 10. O-O-O {[%clk 0:03:10.4]} 10... a6 {[%clk 0:02:36.7]} 11. g4
{[%clk 0:03:10.8]} 11... Rc8 {[%clk 0:02:24.7]} 12. g5 {[%clk 0:03:10.9]} 12...
Nh5 {[%clk 0:02:22.9]} 13. Ne2 {[%clk 0:03:09.1]} 13... b5 {[%clk 0:02:05.9]}
14. Ng3 {[%clk 0:03:08.8]} 14... Nf4 {[%clk 0:02:01.9]} 15. h4 {[%clk
0:03:09.9]} 15... d5 {[%clk 0:01:49.2]} 16. Bxf4 {[%clk 0:03:10.8]} 16... exf4
{[%clk 0:01:47.4]} 17. exd5 {[%clk 0:03:01.7]} 17... fxg3 {[%clk 0:01:42.6]} 18.
dxe6 {[%clk 0:03:02.9]} 18... Qxd2+ {[%clk 0:01:41.6]} 19. Rxd2 {[%clk
0:02:58.9]} 19... fxe6 {[%clk 0:01:41.2]} 20. Bh3 {[%clk 0:02:59.1]} 20... Nd8
{[%clk 0:01:27.7]} 21. Rd7 {[%clk 0:02:50.9]} 21... Rf7 {[%clk 0:00:57.2]} 22.
f4 {[%clk 0:02:31.8]} 22... Bf8 {[%clk 0:00:44.6]} 23. Rxd8 {[%clk 0:02:27.4]}
23... Rxd8 {[%clk 0:00:43.1]} 24. Bxe6 {[%clk 0:02:28.5]} 24... g6 {[%clk
0:00:36.7]} 25. Rg1 {[%clk 0:02:05.9]} 25... Bd6 {[%clk 0:00:35.7]} 26. c3
{[%clk 0:01:07.2]} 26... Bxf4+ {[%clk 0:00:25.1]} 27. Kc2 {[%clk 0:01:08.5]}
27... Rf8 {[%clk 0:00:14]} 28. Nd4 {[%clk 0:01:09.1]} 28... Kg7 {[%clk
0:00:11.8]} 29. Bxf7 {[%clk 0:01:07.7]} 29... Kxf7 {[%clk 0:00:08.6]} 30. Ne2
{[%clk 0:01:06.1]} 30... Bc7 {[%clk 0:00:07.8]} 31. Nxg3 {[%clk 0:01:07.2]}
31... Ke6 {[%clk 0:00:07.2]} 32. Re1+ {[%clk 0:01:05.9]} 32... Kd7 {[%clk
0:00:07.2]} 33. Ne4 {[%clk 0:01:06.6]} 33... Rf4 {[%clk 0:00:06.3]} 34. Nf6+
{[%clk 0:01:07.5]} 34... Kc6 {[%clk 0:00:06.4]} 35. Re6+ {[%clk 0:01:07]} 35...
Kb7 {[%clk 0:00:06.8]} 36. Re7 {[%clk 0:01:07.8]} 36... Kc6 {[%clk 0:00:04.4]}
37. Rxh7 {[%clk 0:01:07.1]} 37... Rf2+ {[%clk 0:00:03.9]} 38. Kb3 {[%clk
0:01:07.8]} 38... a5 {[%clk 0:00:04.8]} 39. a3 {[%clk 0:01:06.7]} 39... a4+
{[%clk 0:00:05.5]} 40. Ka2 {[%clk 0:01:08]} 40... Be5 {[%clk 0:00:06.3]} 41. Ng4
{[%clk 0:00:55.1]} 41... Re2 {[%clk 0:00:05.5]} 42. Re7 {[%clk 0:00:52.9]} 42...
Kd6 {[%clk 0:00:03.9]} 43. Rxe5 {[%clk 0:00:39.7]} 43... Rxe5 {[%clk 0:00:04.1]}
44. Nxe5 {[%clk 0:00:40.9]} 44... Kxe5 {[%clk 0:00:05.1]} 45. b3 {[%clk
0:00:42.3]} 45... Kf4 {[%clk 0:00:05.4]} 46. bxa4 {[%clk 0:00:41.6]} 46... bxa4
{[%clk 0:00:06.5]} 47. h5 {[%clk 0:00:23]} 47... Kxg5 {[%clk 0:00:05.7]} 48.
hxg6 {[%clk 0:00:23.9]} 48... Kxg6 {[%clk 0:00:06.5]} 49. Kb2 {[%clk 0:00:24.6]}
49... Kf5 {[%clk 0:00:07.2]} 50. c4 {[%clk 0:00:25.9]} 50... Ke4 {[%clk
0:00:07]} 51. Kc3 {[%clk 0:00:27]} 51... Ke5 {[%clk 0:00:04.6]} 52. Kb4 {[%clk
0:00:27.9]} 52... Kd4 {[%clk 0:00:05.2]} 53. Kb5 {[%clk 0:00:29.2]} 53... Kc3
{[%clk 0:00:05.7]} 54. c5 {[%clk 0:00:30.6]} 54... Kb3 {[%clk 0:00:06.7]} 55. c6
{[%clk 0:00:32.1]} 55... Kxa3 {[%clk 0:00:07.6]} 56. c7 {[%clk 0:00:33.7]} 56...
Kb3 {[%clk 0:00:08.3]} 57. c8=Q {[%clk 0:00:34.5]} 57... a3 {[%clk 0:00:08.9]}
58. Qc1 {[%clk 0:00:31.4]} 58... Ka2 {[%clk 0:00:07.6]} 59. Kc5 {[%clk
0:00:24.9]} 59... Kb3 {[%clk 0:00:06]} 60. Qa1 {[%clk 0:00:25.9]} 1-0

[Event "*** Titled Tuesday 3|2 Blitz"]
[Site "Chess.com"]
[Date "2015.06.02"]
[Round "5"]
[White "aripov96"]
[Black "Carolina-moon"]
[Result "0-1"]
[WhiteElo "2246"]
[BlackElo "1995"]
[TimeControl "180+2"]
[EndTime "12:01:04 PDT"]
[Termination "Carolina-moon won by checkmate"]

1. e4 {[%clk 0:03:01.9]} 1... c5 {[%clk 0:03:01]} 2. Nf3 {[%clk 0:03:02.3]} 2...
d6 {[%clk 0:03:02.5]} 3. Bb5+ {[%clk 0:03:01.6]} 3... Nd7 {[%clk 0:03:00.7]} 4.
O-O {[%clk 0:03:01.7]} 4... a6 {[%clk 0:03:01.5]} 5. Bxd7+ {[%clk 0:03:02.1]}
5... Bxd7 {[%clk 0:03:02.8]} 6. c3 {[%clk 0:03:03]} 6... Bc6 {[%clk 0:03:03.2]}
7. Re1 {[%clk 0:03:00.2]} 7... Nf6 {[%clk 0:02:59.4]} 8. d4 {[%clk 0:02:52.2]}
8... cxd4 {[%clk 0:02:55.7]} 9. cxd4 {[%clk 0:02:47.9]} 9... Bxe4 {[%clk
0:02:55.5]} 10. Bg5 {[%clk 0:02:46.2]} 10... d5 {[%clk 0:02:56.5]} 11. Nc3
{[%clk 0:02:41.2]} 11... Bxf3 {[%clk 0:02:43.3]} 12. Qxf3 {[%clk 0:02:40.7]}
12... e6 {[%clk 0:02:28.4]} 13. Bxf6 {[%clk 0:02:37.1]} 13... gxf6 {[%clk
0:02:08]} 14. Nxd5 {[%clk 0:02:35.1]} 14... Be7 {[%clk 0:02:08.5]} 15. Nf4
{[%clk 0:02:24]} 15... Qd7 {[%clk 0:01:56.3]} 16. Nh5 {[%clk 0:02:17.2]} 16...
O-O-O {[%clk 0:01:52.4]} 17. Qf4 {[%clk 0:01:41.2]} 17... Bd6 {[%clk 0:01:44.5]}
18. Qxf6 {[%clk 0:01:40.5]} 18... Rhg8 {[%clk 0:01:45.5]} 19. Ng3 {[%clk
0:01:39.4]} 19... h5 {[%clk 0:01:43.3]} 20. Qh4 {[%clk 0:01:29.4]} 20... Kb8
{[%clk 0:01:39.4]} 21. Qxh5 {[%clk 0:01:27.4]} 21... Rh8 {[%clk 0:01:36.9]} 22.
Qf3 {[%clk 0:01:24.3]} 22... f5 {[%clk 0:01:33.1]} 23. d5 {[%clk 0:01:21.1]}
23... exd5 {[%clk 0:01:23.3]} 24. Qxf5 {[%clk 0:01:09.8]} 24... Bxg3 {[%clk
0:01:23.6]} 25. Qxd7 {[%clk 0:01:05.7]} 25... Bxh2+ {[%clk 0:01:24.5]} 26. Kf1
{[%clk 0:01:06.7]} 26... Rxd7 {[%clk 0:01:25.8]} 27. g3 {[%clk 0:01:06.8]} 27...
Bxg3 {[%clk 0:01:03]} 28. fxg3 {[%clk 0:01:06.9]} 28... Rh2 {[%clk 0:01:03.3]}
29. Re8+ {[%clk 0:00:47.4]} 29... Ka7 {[%clk 0:01:03.2]} 30. Rae1 {[%clk
0:00:49]} 30... Rf7+ {[%clk 0:01:00.2]} 31. Kg1 {[%clk 0:00:47.5]} 31... Rff2
{[%clk 0:01:01.6]} 32. Rd8 {[%clk 0:00:36.9]} 32... Rfg2+ {[%clk 0:00:57]} 33.
Kf1 {[%clk 0:00:37.7]} 33... Rxb2 {[%clk 0:00:58]} 34. Kg1 {[%clk 0:00:34.6]}
34... Rbg2+ {[%clk 0:00:59]} 35. Kf1 {[%clk 0:00:36.1]} 35... Rxa2 {[%clk
0:01:00.4]} 36. Kg1 {[%clk 0:00:37]} 36... Rag2+ {[%clk 0:00:58.9]} 37. Kf1
{[%clk 0:00:37.8]} 37... Rxg3 {[%clk 0:00:57.4]} 38. Rxd5 {[%clk 0:00:38.8]}
38... Rh1+ {[%clk 0:00:56.6]} 39. Kf2 {[%clk 0:00:40.1]} 39... Rxe1 {[%clk
0:00:57.6]} 40. Kxe1 {[%clk 0:00:41]} 40... Rc3 {[%clk 0:00:56.5]} 41. Kd2
{[%clk 0:00:42.3]} 41... Rc6 {[%clk 0:00:57.2]} 42. Rh5 {[%clk 0:00:40.9]} 42...
b5 {[%clk 0:00:57.9]} 43. Kd3 {[%clk 0:00:39.4]} 43... Kb6 {[%clk 0:00:59.3]}
44. Rh8 {[%clk 0:00:36.7]} 44... a5 {[%clk 0:00:58]} 45. Rb8+ {[%clk 0:00:37.2]}
45... Kc5 {[%clk 0:00:58.6]} 46. Kc3 {[%clk 0:00:37.6]} 46... Rg6 {[%clk
0:00:50.1]} 47. Rc8+ {[%clk 0:00:37.1]} 47... Kb6 {[%clk 0:00:51.2]} 48. Rb8+
{[%clk 0:00:35.2]} 48... Kc5 {[%clk 0:00:49]} 49. Rc8+ {[%clk 0:00:35.8]} 49...
Rc6 {[%clk 0:00:49.3]} 50. Rh8 {[%clk 0:00:31.3]} 50... a4 {[%clk 0:00:48.3]}
51. Rh5+ {[%clk 0:00:30.2]} 51... Kb6+ {[%clk 0:00:48]} 52. Kb4 {[%clk
0:00:29.2]} 52... Rc4+ {[%clk 0:00:46.8]} 53. Ka3 {[%clk 0:00:30.1]} 53... Rg4
{[%clk 0:00:47.4]} 54. Rh8 {[%clk 0:00:29.4]} 54... Rg3+ {[%clk 0:00:45]} 55.
Kb2 {[%clk 0:00:29.9]} 55... Ka5 {[%clk 0:00:41.4]} 56. Ra8+ {[%clk 0:00:30.4]}
56... Kb4 {[%clk 0:00:42.4]} 57. Rh8 {[%clk 0:00:27.5]} 57... Rg2+ {[%clk
0:00:43.3]} 58. Kb1 {[%clk 0:00:27.4]} 58... a3 {[%clk 0:00:44.5]} 59. Rh4+
{[%clk 0:00:26.2]} 59... Kb3 {[%clk 0:00:45.2]} 60. Rh3+ {[%clk 0:00:27.2]}
60... Ka4 {[%clk 0:00:46.6]} 61. Rh8 {[%clk 0:00:20.7]} 61... b4 {[%clk
0:00:47.2]} 62. Rh3 {[%clk 0:00:22.2]} 62... Rb2+ {[%clk 0:00:35.1]} 63. Ka1
{[%clk 0:00:22.5]} 63... Rc2 {[%clk 0:00:35.6]} 64. Kb1 {[%clk 0:00:22.6]} 64...
Rc3 {[%clk 0:00:35.4]} 65. Rh2 {[%clk 0:00:17]} 65... Kb3 {[%clk 0:00:30.1]} 66.
Rb2+ {[%clk 0:00:17.9]} 66... Kc4 {[%clk 0:00:31.1]} 67. Rh2 {[%clk 0:00:17.8]}
67... Rd3 {[%clk 0:00:29.2]} 68. Rh4+ {[%clk 0:00:18.5]} 68... Kc3 {[%clk
0:00:29.6]} 69. Rh2 {[%clk 0:00:16.8]} 69... Rd1+ {[%clk 0:00:29.7]} 70. Ka2
{[%clk 0:00:17.5]} 70... Rd2+ {[%clk 0:00:30.3]} 71. Ka1 {[%clk 0:00:16.5]}
71... Rxh2 {[%clk 0:00:29.5]} 72. Kb1 {[%clk 0:00:18.1]} 72... b3 {[%clk
0:00:28.2]} 73. Kc1 {[%clk 0:00:18.8]} 73... Rh1# {[%clk 0:00:29.7]} 0-1

[Event "*** Titled Tuesday 3|2 Blitz"]
[Site "Chess.com"]
[Date "2015.06.02"]
[Round "5"]
[White "VovAn1991"]
[Black "GMHess"]
[Result "1-0"]
[WhiteElo "2483"]
[BlackElo "2474"]
[TimeControl "180+2"]
[EndTime "12:02:18 PDT"]
[Termination "VovAn1991 won by resignation"]

1. g3 {[%clk 0:01:48.3]} 1... g6 {[%clk 0:03:01.6]} 2. Bg2 {[%clk 0:01:50.2]}
2... Bg7 {[%clk 0:03:03.1]} 3. Nf3 {[%clk 0:01:51.2]} 3... Nf6 {[%clk
0:03:01.2]} 4. O-O {[%clk 0:01:52.6]} 4... O-O {[%clk 0:03:03.1]} 5. d3 {[%clk
0:01:54.2]} 5... d5 {[%clk 0:03:02.9]} 6. Nbd2 {[%clk 0:01:54.9]} 6... c6 {[%clk
0:03:01.3]} 7. e4 {[%clk 0:01:54.8]} 7... Bg4 {[%clk 0:02:54.6]} 8. Qe1 {[%clk
0:01:54.4]} 8... Na6 {[%clk 0:02:48.7]} 9. a3 {[%clk 0:01:53.3]} 9... Nc5 {[%clk
0:02:44.5]} 10. h3 {[%clk 0:01:52.2]} 10... Bxf3 {[%clk 0:02:44.6]} 11. Bxf3
{[%clk 0:01:54.1]} 11... dxe4 {[%clk 0:02:40.9]} 12. dxe4 {[%clk 0:01:56]} 12...
Ne6 {[%clk 0:02:39.2]} 13. Qe3 {[%clk 0:01:53.3]} 13... Nd4 {[%clk 0:02:31.2]}
14. Bd1 {[%clk 0:01:53.6]} 14... Qd7 {[%clk 0:02:29.6]} 15. Kg2 {[%clk
0:01:52.4]} 15... Rad8 {[%clk 0:02:24.4]} 16. c3 {[%clk 0:01:51.7]} 16... Ne6
{[%clk 0:02:23.5]} 17. f4 {[%clk 0:01:48.8]} 17... Qd3 {[%clk 0:01:57]} 18. Qxd3
{[%clk 0:01:47.7]} 18... Rxd3 {[%clk 0:01:58.9]} 19. Bc2 {[%clk 0:01:48.6]}
19... Rd7 {[%clk 0:01:45]} 20. e5 {[%clk 0:01:47.7]} 20... Nd5 {[%clk 0:01:35]}
21. Ne4 {[%clk 0:01:48.7]} 21... Rfd8 {[%clk 0:01:35.1]} 22. a4 {[%clk
0:01:40.3]} 22... h5 {[%clk 0:01:08.8]} 23. a5 {[%clk 0:01:35.6]} 23... Bf8
{[%clk 0:00:57.7]} 24. Ba4 {[%clk 0:01:24.3]} 24... Ng7 {[%clk 0:00:51.4]} 25.
g4 {[%clk 0:01:20.3]} 25... hxg4 {[%clk 0:00:33.5]} 26. hxg4 {[%clk 0:01:22.2]}
26... Rc7 {[%clk 0:00:25.6]} 27. f5 {[%clk 0:01:19.3]} 27... gxf5 {[%clk
0:00:22.6]} 28. gxf5 {[%clk 0:01:21.2]} 28... b5 {[%clk 0:00:14.6]} 29. axb6
{[%clk 0:01:21.1]} 29... axb6 {[%clk 0:00:14.3]} 30. f6 {[%clk 0:01:16.9]} 30...
exf6 {[%clk 0:00:13.6]} 31. exf6 {[%clk 0:01:18.8]} 31... Ne6 {[%clk 0:00:14.8]}
32. Kf3 {[%clk 0:01:19.3]} 32... Bd6 {[%clk 0:00:07.4]} 33. Bh6 {[%clk
0:01:11.9]} 33... Ndf4 {[%clk 0:00:03.2]} 34. Nxd6 {[%clk 0:01:10.7]} 34... Rxd6
{[%clk 0:00:05.1]} 35. Bxf4 {[%clk 0:01:09.6]} 35... Nxf4 {[%clk 0:00:07]} 36.
Kxf4 {[%clk 0:01:11.4]} 36... Rxf6+ {[%clk 0:00:08.4]} 37. Ke3 {[%clk
0:01:08.1]} 37... Re7+ {[%clk 0:00:08.1]} 38. Kd2 {[%clk 0:01:09.1]} 38... Rd6+
{[%clk 0:00:09.2]} 39. Kc2 {[%clk 0:01:08.3]} 39... Re2+ {[%clk 0:00:09.9]} 40.
Kb1 {[%clk 0:01:05.7]} 40... Rdd2 {[%clk 0:00:08.4]} 41. Ra2 {[%clk 0:01:06.4]}
41... Kg7 {[%clk 0:00:07.6]} 42. Bxc6 {[%clk 0:01:05.3]} 42... f5 {[%clk
0:00:06.8]} 43. Bf3 {[%clk 0:00:35.3]} 43... Rh2 {[%clk 0:00:05]} 44. Rd1 {[%clk
0:00:18.1]} 44... Rdf2 {[%clk 0:00:04.2]} 45. Bd5 {[%clk 0:00:19]} 45... f4
{[%clk 0:00:05.2]} 46. b4 {[%clk 0:00:19.4]} 46... Rxa2 {[%clk 0:00:02.1]} 47.
Bxa2 {[%clk 0:00:21.3]} 47... f3 {[%clk 0:00:04]} 48. Bd5 {[%clk 0:00:21.2]}
48... f2 {[%clk 0:00:05.3]} 49. Rf1 {[%clk 0:00:22.4]} 49... Kf6 {[%clk
0:00:06.6]} 50. Kc2 {[%clk 0:00:23.5]} 50... Ke5 {[%clk 0:00:08.1]} 51. c4
{[%clk 0:00:24.8]} 51... Kf4 {[%clk 0:00:08.4]} 52. Kd2 {[%clk 0:00:26]} 52...
Kg3 {[%clk 0:00:08.6]} 53. Ke2 {[%clk 0:00:27]} 53... b5 {[%clk 0:00:09.5]} 54.
cxb5 {[%clk 0:00:21.3]} 54... Rh5 {[%clk 0:00:10.4]} 55. Bc6 {[%clk 0:00:21.4]}
55... Re5+ {[%clk 0:00:11.7]} 56. Kd2 {[%clk 0:00:22.5]} 56... Re6 {[%clk
0:00:13]} 57. Rc1 {[%clk 0:00:21.6]} 57... Kh2 {[%clk 0:00:08.5]} 58. Kd3 {[%clk
0:00:19.3]} 58... Re1 {[%clk 0:00:07.9]} 59. Rc2 {[%clk 0:00:20.3]} 59... Kg3
{[%clk 0:00:06.5]} 60. Rxf2 {[%clk 0:00:21.1]} 60... Kxf2 {[%clk 0:00:08.4]} 61.
b6 {[%clk 0:00:22.8]} 61... Rd1+ {[%clk 0:00:06.6]} 62. Kc4 {[%clk 0:00:23.1]}
62... Rd8 {[%clk 0:00:08.1]} 63. b7 {[%clk 0:00:23]} 63... Ke3 {[%clk
0:00:09.6]} 64. Bd7 {[%clk 0:00:20.7]} 64... Rb8 {[%clk 0:00:10.6]} 65. Bc8
{[%clk 0:00:22]} 65... Ke4 {[%clk 0:00:11.3]} 66. b5 {[%clk 0:00:21.7]} 66...
Ke5 {[%clk 0:00:09]} 67. Kc5 {[%clk 0:00:22.8]} 67... Ke4 {[%clk 0:00:09.7]} 68.
Kc6 {[%clk 0:00:22.8]} 68... Kd4 {[%clk 0:00:11.3]} 69. Kc7 {[%clk 0:00:21.5]}
69... Rxb7+ {[%clk 0:00:12.6]} 70. Bxb7 {[%clk 0:00:21.3]} 70... Kc5 {[%clk
0:00:14.5]} 1-0